Cogmind - Beta 9.2 @@@ ROGUE MODE // 2019.12.15 @ 17:19:25 Player: 277 Result: Destroyed by Y-45 Defender with Heavy Assault Rifle Performance ------------- Evolutions (1) 500 Regions Visited (3) 600 Robots Destroyed (3) 15 Value Destroyed (36) 36 Prototype IDs (0) 0 Alien Tech Used (0) 0 Bonus (0) 0 TOTAL SCORE: 1151 Bonus ------- None Cogmind --------- Core Integrity 0/400 Matter 295/300 Energy 100/100 System Corruption 0% Temperature Cool (9) Movement Core (50) Location -9/Materials Parts ------- > --- POWER (1) -------- (None) > --- PROPULSION (3) --- (None) > --- UTILITY (3) ------ Signal Interpreter > --- WEAPON (2) ------- Flail > --- INVENTORY (4) ---- Mini Grenade Launcher Peak State ------------ > --- POWER ------------ (None) > --- PROPULSION ------- Flight Unit > --- UTILITY ---------- Sensor Array Signal Interpreter > --- WEAPON ----------- EM Pulse Gun > --- INVENTORY -------- Mini Grenade Launcher [Rating: 4] Favorites ----------- Power None Propulsion Flight Unit Flight Unit Flight Unit Utility Signal Interpreter Device Sensor Array Processor Signal Interpreter Weapon EM Pulse Gun Energy Gun EM Pulse Gun Impact Weapon Flail Build | -11 -10 -10 -9 ------- Run | Scr Mat Min Mat Slots Evolved 2 | . . . 2 Power . | . . . . Propulsion 1 | . . . 1 Utility 1 | . . . 1 Weapon . | . . . . Parts Attached 5 | . 3 1 1 Power . | . . . . Engine . | . . . . Core . | . . . . Reactor . | . . . . Propulsion 1 | . . 1 . Treads . | . . . . Leg . | . . . . Wheel . | . . . . Hover . | . . . . Flight 1 | . . 1 . Utility 2 | . 2 . . Device 1 | . 1 . . Storage . | . . . . Processor 1 | . 1 . . Hackware . | . . . . Protection . | . . . . Artifact . | . . . . Weapon 2 | . 1 . 1 Energy Gun 1 | . 1 . . Energy Cannon . | . . . . Ballistic Gun . | . . . . Ballistic Cannon . | . . . . Launcher . | . . . . Special Weapon . | . . . . Impact Weapon 1 | . . . 1 Slashing Weapon . | . . . . Piercing Weapon . | . . . . Special Melee Weapon . | . . . . Unidentified Prototypes . | . . . . Parts Lost 3 | . . 2 1 Power . | . . . . Propulsion 1 | . . 1 . Utility 1 | . . . 1 Weapon 1 | . . 1 . Highest Loss Streak 2 | . . 2 1 Average Slot Usage (%) 30 | . 16 42 26 Device 9 | . 1 14 9 Processor 11 | . 8 14 11 Energy Gun 8 | . 6 13 . Impact Weapon 1 | . . . 6 Naked Turns 41 | . 41 . . Heaviest Build 3 | . 3 3 3 Greatest Support 4 | 3 3 4 3 Greatest Overweight (x) . | . . . . Average Overweight (x) . | . . . . Largest Inventory Capacity 4 | 4 4 4 4 Average Capacity 4 | 4 4 4 4 Most Carried 1 | . 1 1 1 Average Carried . | . . . 1 Final Capacity 4 | 4 4 4 4 Final Carried 1 | . . 1 1 Class Distribution -------------------- 100% | Mutant Dominant Class ---------------- Mutant | -10/Materials Mutant | -10/Mines Mutant | -9/Materials Resources | -11 -10 -10 -9 ----------- Run | Scr Mat Min Mat Matter Collected 230 | 200 20 10 . Remotely . | . . . . Salvage Created 61 | . 27 20 14 Parts 3 | . 2 . 1 Haulers Intercepted . | . . . . Recyclers Shooed . | . . . . Parts Field Recycled . | . . . . Retrieved Matter . | . . . . Parts Self-Destructed . | . . . . Prevented . | . . . . Kills | -11 -10 -10 -9 ------- Run | Scr Mat Min Mat Combat Hostiles Destroyed 2 | . . 1 1 Guns 1 | . . 1 . Classes Destroyed 3 | . 1 1 1 Watcher 1 | . 1 . . Swarmer 1 | . . . 1 Assembled 1 | . . 1 . Best Kill Streak 1 | . 1 1 1 Combat Bots Only 1 | . . 1 1 Max Kills in Single Turn 1 | . 1 1 1 Gunslinging . | . . . . Exploded . | . . . . Melee . | . . . . Uniques/NPCs Destroyed . | . . . . Combat | -11 -10 -10 -9 -------- Run | Scr Mat Min Mat Damage Taken 639 | . . 171 468 Core 507 | . . 103 404 Absorbed by Shields . | . . . . Core Remaining (%) 79 | 100 . 58 . Volleys Fired 16 | . 1 15 . Largest 1 | . 1 1 . Hottest 40 | . 40 40 . Shots Fired 16 | . 1 15 . Gun 16 | . 1 15 . Cannon . | . . . . Launcher . | . . . . Special . | . . . . Kinetic . | . . . . Thermal . | . . . . Explosive . | . . . . Electromagnetic 16 | . 1 15 . Robot Hit Streak 5 | . 1 5 . Robot Miss Streak 1 | . . 1 . Penetration Max . | . . . . Secondary Targets . | . . . . Shots Hit Robots 17 | . 1 10 6 Core Hits 6 | . 1 4 1 Critical Hits . | . . . . Critical Kills . | . . . . Critical Parts Destroyed . | . . . . Melee Attacks 12 | . . . 12 Impact 12 | . . . 12 Slashing . | . . . . Piercing . | . . . . Sneak Attacks . | . . . . Combat Hostiles . | . . . . Follow-up Attacks . | . . . . Damage Inflicted 293 | . 51 124 118 Guns 144 | . 20 124 . Cannons . | . . . . Explosions 31 | . 31 . . Melee 118 | . . . 118 Ramming . | . . . . Kinetic . | . . . . Thermal 31 | . 31 . . Explosive . | . . . . Electromagnetic 144 | . 20 124 . Impact 118 | . . . 118 Slashing . | . . . . Piercing . | . . . . Highest Corruption 1 | . . 1 . Average Corruption 1 | . . 1 . Corruption Purged . | . . . . Overload Shots . | . . . . Overflow Damage 1 | . . . 1 Projectiles . | . . . . Explosions . | . . . . Melee 1 | . . . 1 Knockbacks . | . . . . Impact . | . . . . Kinetic . | . . . . Secondary . | . . . . Self-Inflicted Damage . | . . . . Shots . | . . . . Rammed . | . . . . Targets Rammed . | . . . . Kicked . | . . . . Crushed . | . . . . Highest Temperature 20 | . . 20 . Average Temperature 11 | . . 11 . Received Heat Transfer 204 | . . 60 144 Siege Activations . | . . . . Robots Corrupted . | . . . . Combat Hostiles . | . . . . Parts Fried 1 | . . . 1 Impact Corruptions 1 | . . . 1 Robots Melted . | . . . . Combat Hostiles . | . . . . Parts Melted . | . . . . Heat Transferred 50 | . 50 . . Parts Sabotaged . | . . . . Parts Stolen . | . . . . Parts Stripped . | . . . . Power Chain Reactions 1 | . 1 . . Missiles Intercepted . | . . . . Alert | -11 -10 -10 -9 ------- Run | Scr Mat Min Mat Peak Influence 71 | . 70 42 71 Average Influence 32 | . 29 33 38 Maximum Alert Level . | . . . . Low Security (%) 100 | 100 100 100 100 Level 1 . | . . . . Level 2 . | . . . . Level 3 . | . . . . Level 4 . | . . . . Level 5 . | . . . . High Security . | . . . . Max Security . | . . . . Squads Dispatched 2 | . 2 . . Investigation . | . . . . Extermination . | . . . . Reinforcement 2 | . 2 . . Assault . | . . . . Garrison . | . . . . Intercept . | . . . . Construction Impeded . | . . . . Haulers Reinforced . | . . . . Stealth | -11 -10 -10 -9 --------- Run | Scr Mat Min Mat Distress Signals . | . . . . Communications Jammed . | . . . . Distress Signals . | . . . . Times Spotted 14 | . 4 5 5 Peak Tracking Total 7 | . 2 2 7 Tactical Retreats 2 | . . 1 1 Traps | -11 -10 -10 -9 ------- Run | Scr Mat Min Mat Traps Triggered . | . . . . Indirectly . | . . . . Trap Hack Attempts . | . . . . Triggered . | . . . . Disarmed . | . . . . Reprogrammed . | . . . . Reused . | . . . . Traps Extracted . | . . . . Installed . | . . . . Triggered . | . . . . Machines | -11 -10 -10 -9 ---------- Run | Scr Mat Min Mat Machines Disabled 1 | . . 1 . Max in Single Turn 1 | . . 1 . Machines Sabotaged . | . . . . Garrisons Compromised . | . . . . Overloaded Fab Kills . | . . . . Fab Network Shutdowns . | . . . . Hacking | -11 -10 -10 -9 --------- Run | Scr Mat Min Mat Machines Accessed 4 | . 3 . 1 Terminals 4 | . 3 . 1 Fabricators . | . . . . Repair Stations . | . . . . Recycling Units . | . . . . Scanalyzers . | . . . . Garrison Access . | . . . . Total Hacks 10 | . 8 . 2 Successful 4 | . 3 . 1 Failed 6 | . 5 . 1 Catastrophic 2 | . 2 . . Database Lockouts . | . . . . Manual 4 | . 4 . . Terminals 10 | . 8 . 2 Fabricators . | . . . . Repair Stations . | . . . . Recycling Units . | . . . . Scanalyzers . | . . . . Garrison Access . | . . . . Terminal Hacks 3 | . 2 . 1 Branch Access Points 2 | . 1 . 1 Zone Layout 1 | . 1 . . Fabricator Hacks . | . . . . Repair Station Hacks . | . . . . Recycling Unit Hacks . | . . . . Scanalyzer . | . . . . Garrison Access Hacks . | . . . . Unauthorized Hacks 3 | . 3 . . Terminals 1 | . 1 . . Assimilate 1 | . 1 . . Fabricators . | . . . . Repair Stations . | . . . . Recycling Units . | . . . . Scanalyzers . | . . . . Garrison Access . | . . . . Data Cores Recovered . | . . . . Used . | . . . . Hacking Detections 4 | . 3 . 1 Full Trace Events . | . . . . Feedback Events . | . . . . Feedback Blocked . | . . . . Robot Schematics Acquired . | . . . . Robots Built . | . . . . Matter . | . . . . Time . | . . . . Total Robot Build Rating . | . . . . Part Schematics Acquired . | . . . . Parts Built . | . . . . Matter . | . . . . Time . | . . . . Total Part Build Rating . | . . . . Parts Repaired . | . . . . Time . | . . . . Parts Recycled . | . . . . Recycled Matter . | . . . . Retrieved Matter . | . . . . Retrieved Components . | . . . . Parts Scanalyzed . | . . . . Part Schematics Acquired . | . . . . Parts Damaged . | . . . . Bothacking | -11 -10 -10 -9 ------------ Run | Scr Mat Min Mat Used RIF Installer . | . . . . Robots Hacked . | . . . . Non-combat . | . . . . Combat . | . . . . Robot Hacks Applied . | . . . . Relay Couplers Released . | . . . . Robots Rewired . | . . . . Allies Hacked . | . . . . Hacks Repelled . | . . . . Allies | -11 -10 -10 -9 -------- Run | Scr Mat Min Mat Total Allies 1 | . 1 . . Largest Group 1 | . 1 1 . Highest-Rated Group 10 | . 10 10 . Highest-Rated Ally 10 | . 10 10 . Total Orders . | . . . . Ally Attacks . | . . . . Total Damage . | . . . . Kills . | . . . . Allies Corrupted 1 | . . 1 . Allies Melted . | . . . . Intel | -11 -10 -10 -9 ------- Run | Scr Mat Min Mat Robot Analysis Total . | . . . . Derelict Logs Recovered 1 | . . 1 . Drone Launches . | . . . . Drone Recoveries . | . . . . Exploration | -11 -10 -10 -9 ------------- Run | Scr Mat Min Mat Turns Passed 368 | 10 109 173 76 Spaces Moved 492 | 20 192 210 70 Core 490 | 20 192 208 70 Treads . | . . . . Legs . | . . . . Wheels . | . . . . Hover . | . . . . Flight 2 | . . 2 . Fastest Speed 40 | 50 50 40 50 Average Speed 49 | 50 50 49 50 Slowest Speed 50 | 50 50 50 50 Overloaded Moves . | . . . . Propulsion Burnouts . | . . . . Robots Hopped . | . . . . Cave-ins Triggered . | . . . . Exploration Rate (%) 20 | 3 34 36 10 Regions Visited 3 Branch Regions 1 Pre-discovered Areas . | . . . . Known Exits Taken 2 | . 1 1 . Unknown Exits Taken 1 | 1 . . . Scrap Searched 1 | . . 1 . Spaces Dug . | . . . . Terrain Destroyed 3 | . 3 . . Melee . | . . . . Projectile . | . . . . AOE 3 | . 3 . . Actions | -11 -10 -10 -9 --------- Run | Scr Mat Min Mat Total 576 | 19 202 262 93 Wait 52 | . 6 36 10 Move 489 | 19 191 209 70 Hop . | . . . . Pick Up 2 | . 1 1 . Fast Attach 4 | . 2 1 1 Attach 1 | . 1 . . Detach . | . . . . Swap . | . . . . Drop . | . . . . Fire 16 | . 1 15 . Melee 12 | . . . 12 Ram . | . . . . Kick . | . . . . Crush . | . . . . Escape Stasis . | . . . . Rewire . | . . . . Trap . | . . . . Miscellaneous . | . . . . Route ------- -11/Scrapyard -10/Materials (discovered 2 exits: *Min x2) -10/Mines -9/Materials (discovered 1 exit: Min) History --------- Turn | Location | Event 4 | -11/Scrapyard | Discovered new exit (range 15) 11 | -11/Scrapyard | Entered Materials 33 | -10/Materials | Identified exit to Mines 120 | -10/Materials | Entered Mines 120 | -10/Mines | Accompanied by 1 ally 121 | -10/Mines | Assembled infested the area 126 | -10/Mines | Assisted by a Guerilla fighting off Assembled 127 | -10/Mines | Met a Derelict bent on vengeance 289 | -10/Mines | Discovered new exit (range 5) 291 | -10/Mines | Identified exit to Materials 293 | -10/Mines | Entered Materials 293 | -9/Materials | Evolved 2 slots: Propulsion x1, Utility x1 294 | -9/Materials | Identified exit to Mines 312 | -9/Materials | Build established: Mutant 359 | -9/Materials | Core integrity fell below 50% 365 | -9/Materials | Core integrity fell below 20% 369 | -9/Materials | Destroyed by Y-45 Defender with Heavy Assault Rifle Last Messages --------------- 00289_ EXIT=FOUND 00290_ R-06 Scavenger collects Med. Matter Pod. 00291_ EXIT=IDENTIFIED: MATERIALS 00291_ K-01 Serf collects debris. PARAMETERS=PROPULSION_1,UTILITY_1 LOCATION=MATERIALS GOAL=ESCAPE Loading 1 Mines entrance... 00299_ Connecting with Terminal... >>Access(Branch) Found 1 branch access point: (48,49) Mines Map updated. 00317_ Processing Tank disabled. 00322_ Acquired Flail. 00352_ Destroyed Flight Unit. 00352_ S-10 Pest system corrupted by crushing effect. 00353_ S-10 Pest system terminally corrupted. 00353_ Flight Unit fried. 00357_ Sensor Array destroyed. Map ----- +----------------------------------------------------+ | #??????????????????????????????????????? | | ########+########+######## ??????????????????? | | ????# #?????????????????? | | ????# /?????????????????? | | ????# ??????????????????? | | ????####+######+#######??? ??????????????????? | | ?????? # #?????# #??????????????????? | | ???? # ! #?????# #??????????????????? | | ?? # [#?????# #??????????????????? | | ?# # #?????+ +??????????????????? | | ?# # """ #?????# #??????????????????? | | ?# # """"" #?????# #??????????????????? | | ?# # """"" #????## ##?????????????????? | | ?# # """"" ###### #?????????????????? | | ?########### """ + #?????????????????? | | ???????????############### #?????????????????? | | ?????????????????????????# #?????????????????? | | ?????????????????????????# #?????????????????? | | ????????????????????????####+#####???????????????? | | ????????????????????????# #???????????????? | | ????????????????????????# " #???????????????? | | ????????????????????????# T #???????????????? | | ????????????????????????# " ] #???????????????? | | ????????????????????????#s #???????????????? | | ????????????????????????#Y"" "" #???????????????? | | ????????????????????????#@""""" #???????????????? | | ????????????????????????#Y"""" #???????????????? | | ????????????????????????#s #???????????????? | | ????????????????????????##########???????????????? | | ?????????????????????????????????????????????????? | | ?????????????????????????????????????????????????? | | ?????????????????????????????????????????????????? | | ?????????????????????????????????????????????????? | | ?????????????????????????????????????????????????? | | ?????????????????????????????????????????????????? | | ?????????????????????????????????????????????????? | | ?????????????????????????????????????????????????? | | ?????????????????????????????????????????????????? | | ?????????????????????????????????????????????????? | | ?????????????????????????????????????????????????? | | ?????????????????????????????????????????????????? | | ?????????????????????????????????????????????????? | | ?????????????????????????????????????????????????? | | ?????????????????????????????????????????????????? | | ????????????????????????????????????>????????????? | | ?????????????????????????????????????????????????? | | ?????????????????????????????????????????????????? | | ?????????????????????????????????????????????????? | | ?????????????????????????????????????????????????? | | ?????????????????????????????????????????????????? | +----------------------------------------------------+ Best States ------------- Heat Dissipation 28 Energy Generation 5 Energy Capacity 100 Matter Stores 300 Matter Capacity 300 Sight Range 16 Robot Scan Range 10 Terrain Scan Density 10 Evasion (%) 50 Item Schematics ----------------- None Robot Schematics ------------------ None Fabricated ------------ Nothing Alien Tech Used ----------------- None Achievements -------------- None Challenges ------------ None Game ------ Seed HeavyMediumLog Manual? 0 Play Time 00:08:32 Cumulative 173.3 hours Start 2019.12.15 @ 17:07:10 End 2019.12.15 @ 17:19:25 Sessions 1 Manual Loads 0 Difficulty Rogue Special Mode None Game No. 116 Rogue 116 Adventurer 0 Explorer 0 Win Type - Total 1 Types 1/0/0/0/0/0/0 Lore% 50 Gallery% 66 Achievement% 48 Wizard Run 0 Options --------- ASCII 0 Keyboard 0 Movement Mouse Keybinds 0 Fullscreen 1 Font 18/SmallcapsGlow Map View 76x50 Tactical HUD 1 Map Filters NONE Filters NONE Steam 1 RUN: e27d5b68-9640-4bd1-918c-5f3bcbac6b3f